fUST/lending_fUST_20240817
["ID","MTS","AMOUNT","RATE_DAILY","PERIOD"]
[335158883,1723893027336,-500.0,0.00076712,120]
[335158884,1723893027392,-500.0,0.00079452,120]
[335158885,1723893027447,-152.0,0.00080266,120]
[335158886,1723893027502,-152.0,0.00080266,120]
[335158887,1723893027660,-690.91,0.0008109,30]
[335158888,1723893027714,-603.0,0.000811,30]
[335158889,1723893027767,-157.894736,0.00081196,120]
[335158890,1723893027819,-500.0,0.00082191,120]
[335158891,1723893027872,-500.0,0.00082191,120]
[335158892,1723893027925,-500.0,0.00082798,120]
[335158893,1723893027978,-1000.0,0.00083,30]
[335158894,1723893028031,-500.0,0.00084931,120]
[335158895,1723893028085,-152.0,0.00087523,120]
[335158896,1723893028137,-152.0,0.00087523,120]
[335158897,1723893028191,-500.0,0.00087671,120]
[335158898,1723893028247,-169.948311,0.00087671,120]
[335158899,1723893028297,-3100.0,0.00087735,120]
[335158900,1723893028348,-500.0,0.00088263,120]
[335158901,1723893028398,-1400.0,0.00088487,120]
[335158902,1723893028450,-1000.0,0.00088993,120]
[335158903,1723893028502,-2000.0,0.000892,120]
[335158904,1723893028554,-1000.0,0.0009,120]
[335158905,1723893028607,-500.0,0.0009041,120]
[335158906,1723893028659,-500.0,0.00092245,120]
[335158907,1723893028713,-157.894736,0.00092354,120]
[335158908,1723893028765,-500.0,0.0009315,120]
[335158909,1723893028818,-152.0,0.0009478,120]
[335158910,1723893028870,-152.0,0.0009478,120]
[335158911,1723893028921,-500.0,0.0009589,120]
[335158912,1723893028973,-1000.0,0.00098,120]
[335158913,1723893029025,-500.0,0.0009863,120]
[335158914,1723893029077,-10000.0,0.00099,60]
[335158915,1723893029127,-150.0,0.0009904,120]
[335158916,1723893029179,-2000.0,0.000992,120]
[335158917,1723893029242,-150.0,0.001,2]
[335158918,1723893029297,-150.0,0.00101,2]
[335158919,1723893029352,-316.56038757,0.00101369,120]
[335158920,1723893029416,-3100.0,0.00101719,120]
[335158921,1723893029482,-152.0,0.00102036,120]
[335158922,1723893029540,-152.0,0.00102036,120]
[335158923,1723893029598,-157.894736,0.00103512,120]
[335158924,1723893029654,-169.948311,0.00104795,120]
[335158925,1723893029710,-1000.0,0.00106702,120]
[335158926,1723893029765,-2000.0,0.001092,120]
[335158927,1723893029818,-152.0,0.00109293,120]
[335158928,1723893029870,-152.0,0.00109293,120]
[335158929,1723893029925,-532.86,0.00109589,120]
[335158930,1723893029977,-500.0,0.00109589,120]
[335158931,1723893030030,-500.0,0.00109589,120]
[335158932,1723893030081,-500.0,0.00109589,30]
[335158933,1723893030132,-500.0,0.00109589,120]
[335158934,1723893030184,-500.0,0.00109589,120]
[335158935,1723893030240,-500.0,0.00109589,120]
[335158936,1723893030293,-500.0,0.00109589,120]
[335158937,1723893030344,-503.24213119,0.00109589,120]
[335158938,1723893030395,-500.0,0.00109589,120]
[335158939,1723893030448,-491.61811094,0.00109589,120]
[335158940,1723893030499,-500.0,0.00109589,7]
[335158941,1723893030549,-500.0,0.00109589,120]
[335158942,1723893030600,-561.74,0.00109589,120]
[335158943,1723893030649,-500.0,0.00109589,120]
[335158944,1723893030700,-500.0,0.00109589,120]
[335158945,1723893030750,-500.0,0.00109589,120]
[335158946,1723893030800,-763.16,0.00109589,7]
[335158947,1723893030850,-522.67,0.00109589,60]
[335158948,1723893030902,-500.0,0.00109589,120]
[335158949,1723893030954,-650.97,0.00109589,120]
[335158950,1723893031009,-500.0,0.00109589,120]
[335158951,1723893031062,-500.0,0.00109589,120]
[335158952,1723893031115,-500.0,0.00109589,120]
[335158953,1723893031170,-200.0,0.00109589,7]
[335158954,1723893031223,-500.0,0.00109589,120]
[335158955,1723893031276,-367.88702409,0.00109589,120]
[335158956,1723893031328,-500.0,0.00109589,120]
[335158957,1723893031379,-500.0,0.00109589,120]
[335158958,1723893031432,-500.0,0.00109589,120]
[335158959,1723893031486,-500.0,0.00109589,120]
[335158960,1723893031537,-500.0,0.00109589,120]
[335158961,1723893031591,-500.0,0.00109589,120]
[335158962,1723893031647,-500.0,0.00109589,120]
[335158963,1723893031702,-500.0,0.00109589,120]
[335158964,1723893031756,-500.0,0.00109589,120]
[335158965,1723893031813,-500.0,0.00109589,120]
[335158966,1723893031867,-500.0,0.00109589,120]
[335158968,1723893031922,-500.0,0.00109589,120]
[335158972,1723893031976,-500.0,0.00109589,120]
[335158973,1723893032032,-500.0,0.00109589,120]
[335158974,1723893032092,-500.0,0.00109589,120]
[335158978,1723893032158,-500.0,0.00109589,120]
[335158982,1723893032215,-500.0,0.00109589,120]
[335158986,1723893032275,-500.0,0.00109589,120]
[335158993,1723893032332,-541.25,0.00109589,120]
[335159000,1723893032387,-500.0,0.00109589,120]
[335159007,1723893032446,-500.0,0.00109589,21]
[335159014,1723893032505,-500.0,0.00109589,120]
[335159020,1723893032561,-500.0,0.00109589,120]
[335159022,1723893032616,-500.0,0.00109589,120]
[335159028,1723893032669,-500.0,0.00109589,120]
[335159031,1723893032722,-500.0,0.00109589,120]
[335159032,1723893032777,-500.0,0.00109589,120]
[335159033,1723893032832,-500.0,0.00109589,120]
[335159034,1723893032884,-500.0,0.00109589,120]
[335159035,1723893032936,-500.0,0.00109589,120]
[335159036,1723893032989,-500.0,0.00109589,120]
[335159037,1723893033042,-500.0,0.00109589,120]
[335159038,1723893033096,-500.0,0.00109589,120]
[335159039,1723893033150,-500.0,0.00109589,120]
[335159040,1723893033204,-500.0,0.00109589,120]
[335159041,1723893033260,-500.0,0.00109589,120]
[335159042,1723893033318,-500.0,0.00109589,120]
[335159043,1723893033376,-510.89,0.00109589,120]
[335159044,1723893033431,-103.9818812,0.00109589,120]
[335159045,1723893033875,-306.0,0.00047995,120]
[335159046,1723893033885,-986.5599157,0.00047995,2]
[335159047,1723893033895,-4423.422,0.000892,120]
[335159048,1723893033904,-396.0181188,0.00109589,120]
[335159049,1723893033913,-296.00595633,0.00109589,120]
[335159050,1723893033925,-203.99404367,0.00109589,120]
[335159051,1723893033935,-128.98188733,0.0011,120]
[335159052,1723893033946,-439.565,0.0011,120]
[335159053,1723893034071,-431.45311267,0.0011,120]
[335159054,1723893034084,-3100.0,0.00110177,120]
[335159055,1723893034094,-3100.0,0.00111388,120]
[335159056,1723893034105,-402.03166484,0.00111501,120]
[335159057,1723893034117,-97.96833516,0.00111501,120]
[335159058,1723893034127,-500.0,0.00111594,120]
[335159059,1723893034137,-500.0,0.00112448,120]
[335159060,1723893034148,-157.894736,0.0011467,120]
[335159061,1723893034158,-152.0,0.0011655,120]
[335159062,1723893034168,-152.0,0.0011655,120]
[335159063,1723893034179,-469.03645649,0.0012,120]
[335159064,1723893034437,88257.13603324,0.00016,120]
[335159065,1723893034471,100000.0,0.00016,120]
[335159066,1723893034504,1000000.0,0.00016,120]
[335159067,1723893034534,100000.0,0.00016,120]
[335159068,1723893034561,100000.0,0.00016,120]
[335159069,1723893034585,60000.0,0.00016,120]
[335159070,1723893034617,150000.0,0.00016,120]
[335159071,1723893034663,500.0,0.00016,120]
[335159072,1723893034687,500.0,0.00016,120]
[335159073,1723893034710,29849.0,0.00016,120]
[335159074,1723893034740,90000.0,0.00016,120]
[335159075,1723893034765,10000.0,0.00016,120]
[335159076,1723893034793,500.0,0.00016,120]
[335159077,1723893034819,1000.0,0.00016,120]
[335159078,1723893034849,54621.55001017,0.00016,120]
[335159079,1723893034893,13865.12460302,0.00016,120]
[335159080,1723893035031,120000.0,0.00016,120]
[335159081,1723893035117,500.0,0.00016,120]
[335159091,1723893038525,-4847.78722478,0.00016,120]
[335159245,1723893059615,-32.88450477,0.00054794,120]
[335159247,1723893121055,757.41031386,0.00014519,3]
[335159248,1723893126261,534.52389159,0.00014519,2]
[335159249,1723893130305,1093.49344924,0.0001512,120]
[335159250,1723893139072,300.50993715,0.0001512,120]
[335159251,1723893143230,155.72760011,0.00014519,2]
[335159252,1723893146955,194.42537163,0.0001512,120]
[335159253,1723893153944,204.44389217,0.00014519,2]
[335159254,1723893155980,154.71377951,0.00014519,2]
[335159255,1723893158144,543.67907992,0.00014519,2]
[335159256,1723893159289,850.51877308,0.00014519,2]
[335159257,1723893160156,160.41055449,0.00014519,2]
[335159259,1723893161563,404.1964714,0.00014519,2]
[335159260,1723893164259,524.52684521,0.00014519,2]
[335159261,1723893168377,154.71377951,0.00014519,2]
[335159262,1723893168751,501.8361156,0.00014519,2]
[335159263,1723893168781,710.71288058,0.00014519,2]
[335159264,1723893171106,435.09471361,0.00014519,2]
[335159265,1723893171819,180.67948358,0.00014519,2]
[335159266,1723893171861,154.71377951,0.00014519,2]
[335159267,1723893175077,155.05960713,0.00014519,2]
[335159268,1723893176111,320.08358525,0.00014519,2]
[335159269,1723893179835,520.25072733,0.00014519,2]
[335159270,1723893181779,189.9631639,0.00014519,2]
[335159271,1723893185944,210.60883339,0.00014519,2]
[335159272,1723893186946,154.71377951,0.00014519,2]
[335159273,1723893188238,728.34861839,0.00014519,2]
[335159274,1723893188273,569.2097652,0.00014519,2]
[335159275,1723893204190,203.7813199,0.00014519,2]
[335159276,1723893239302,154.79103211,0.00014519,2]
[335159278,1723893248008,154.80646411,0.00014519,2]
[335159279,1723893251162,160.35193407,0.00014519,2]
[335159283,1723893257860,241.82398407,0.00014519,2]
[335159284,1723893264406,154.78328795,0.00014519,2]
[335159285,1723893285951,175.71685862,0.00014519,2]
[335159290,1723893431579,166.55964,0.00014247,2]
[335159297,1723893942148,-154.79103211,0.00017199,2]
[335159298,1723893942174,-300.0,0.00019999,2]
[335159299,1723893942198,-300.0,0.00019999,2]
[335159300,1723893942222,-448.28406141,0.0002,2]
[335159303,1723894046108,-203.7052758,0.00019999,2]
[335159305,1723894050105,-96.2947242,0.00019999,2]
[335159306,1723894050129,-381.58438746,0.0002,2]
[335159309,1723894127129,29427.09371628,0.00014,2]
[335159310,1723894150159,-1990.62590843,0.000176,2]
[335159311,1723894150186,-186.48818551,0.000191,2]
[335159312,1723894150214,-300.0,0.00019999,2]
[335159313,1723894150238,-212.551537,0.0002,2]
[335159314,1723894208380,-300.0,0.00019999,2]
[335159315,1723894208634,-3996.9307581,0.0002,2]
[335159316,1723894208695,-156.6016576,0.0002,2]
[335159317,1723894208755,-200.0,0.0002,2]
[335159318,1723894208812,-186.00429565,0.0002,2]
[335159319,1723894208877,-1471.01949458,0.0002,2]
[335159320,1723894208934,-8191.76900476,0.0002,2]
[335159321,1723894208989,-258.43524236,0.00021,2]
[335159322,1723894209046,-232.89970429,0.00021,2]
[335159323,1723894209103,-504.17158941,0.000212,2]
[335159324,1723894209167,-3000.0,0.00021741,2]
[335159325,1723894209225,-420.0,0.00021999,2]
[335159326,1723894209285,-534.431533,0.00022125,2]
[335159327,1723894209344,-154.9519991,0.000223,2]
[335159328,1723894209406,-24900.0,0.000223,2]
[335159329,1723894209463,-161.29,0.000225,2]
[335159330,1723894209520,-608.548921,0.0002272,2]
[335159331,1723894209575,-251.0,0.00022874,2]
[335159332,1723894209633,-250.0,0.00022896,2]
[335159333,1723894209691,-250.0,0.00022959,2]
[335159334,1723894209746,-239.43031736,0.00023,2]
[335159335,1723894209803,-250.0,0.00023021,2]
[335159336,1723894209863,-250.0,0.00023084,2]
[335159337,1723894209926,-250.0,0.00023147,2]
[335159338,1723894209984,-250.0,0.0002321,2]
[335159339,1723894210042,-250.0,0.00023273,2]
[335159340,1723894210100,-250.0,0.00023335,2]
[335159341,1723894210159,-250.0,0.00023398,2]
[335159342,1723894210217,-163.150964,0.00023427,2]
[335159343,1723894210275,-250.0,0.00023461,2]
[335159344,1723894210334,-250.0,0.00023524,2]
[335159345,1723894210394,-250.0,0.00023587,2]
[335159346,1723894210463,-250.0,0.00023649,2]
[335159347,1723894210523,-250.0,0.00023712,2]
[335159348,1723894210582,-250.0,0.00023775,2]
[335159349,1723894210649,-250.0,0.00023838,2]
[335159350,1723894210708,-250.0,0.00023901,2]
[335159351,1723894210765,-250.0,0.00023963,2]
[335159352,1723894210819,-318.80465857,0.00024,2]
[335159353,1723894210875,-250.0,0.00024026,2]
[335159354,1723894210930,-250.0,0.00024089,2]
[335159355,1723894210985,-587.0,0.00024199,2]
[335159356,1723894211043,-10339.94871612,0.000246,2]
[335159357,1723894211099,-222.87390572,0.00024688,2]
[335159358,1723894211155,-154.80649189,0.00024728,2]
[335159359,1723894211211,-5243.39070357,0.00024756,2]
[335159360,1723894211263,-782.32633188,0.00024756,2]
[335159361,1723894211320,-377.3182935,0.00024813,2]
[335159362,1723894211376,-1028.81164894,0.00025,2]
[335159363,1723894211432,-35621.87559583,0.00025,2]
[335159364,1723894211487,-75272.98775108,0.00025,2]
[335159365,1723894211543,-504.09272887,0.00025,2]
[335159366,1723894211599,-504.09272887,0.0002525,2]
[335159367,1723894211652,-504.09272887,0.000255,2]
[335159368,1723894211709,-504.09272887,0.0002575,2]
[335159369,1723894211764,-504.09272887,0.00026,2]
[335159370,1723894211818,-893.96172222,0.00026155,2]
[335159371,1723894211872,-504.09272889,0.0002625,2]
[335159372,1723894211926,-3469.91529334,0.00026421,2]
[335159373,1723894211978,-7458.94652043,0.0002649,2]
[335159374,1723894212030,-166.55964,0.00026521,2]
[335159375,1723894212085,-823.0,0.00026619,2]
[335159376,1723894212138,-43805.55235335,0.000275,2]
[335159377,1723894212198,-12209.65979536,0.0002799,2]
[335159378,1723894212251,-2607.00479237,0.00029,2]
[335159379,1723894212303,-851.998472,0.00029,2]
[335159380,1723894212357,-947.0,0.00029281,2]
[335159381,1723894212415,-608.548921,0.0003408,2]
[335159382,1723894212474,-258.69902034,0.00034899,7]
[335159383,1723894212532,-500.0,0.00034899,7]
[335159384,1723894212587,-385.72955022,0.00034899,7]
[335159385,1723894212643,-500.0,0.00034899,7]
[335159386,1723894212700,-500.0,0.00034899,7]
[335159387,1723894212756,-500.0,0.00034899,7]
[335159388,1723894212808,-27462.01346531,0.000349,2]
[335159389,1723894212861,-154.71377951,0.00035,4]
[335159390,1723894212914,-155.22799982,0.00035,4]
[335159391,1723894212966,-10387.7312018,0.00035,2]
[335159392,1723894213017,-258.31651763,0.0003624,2]
[335159393,1723894213070,-166.55964,0.00038795,2]
[335159394,1723894213120,-3824.75428023,0.00039,120]
[335159395,1723894213170,-3824.75428023,0.00039,120]
[335159396,1723894213219,-4846.02464861,0.0004,2]
[335159397,1723894213270,-4600.0,0.0004,2]
[335159398,1723894213323,-11812.3252413,0.000409,2]
[335159399,1723894213379,-4433.9262284,0.00045,2]
[335159400,1723894213435,-2700.0,0.00045219,30]
[335159401,1723894213487,-3700.0,0.00045624,30]
[335159402,1723894213539,-10000.0,0.00045632,120]
[335159403,1723894213594,-900.0,0.00045958,30]
[335159404,1723894213649,-190.0,0.00047054,30]
[335159405,1723894213704,-176.29,0.000478,30]
[335159406,1723894213759,-900.0,0.00049639,30]
[335159407,1723894213814,-4345.68338588,0.0005,60]
[335159408,1723894213874,-166.55964,0.00051068,2]
[335159409,1723894213927,-245.0,0.00052067,60]
[335159410,1723894213982,-2700.0,0.00053682,60]
[335159411,1723894214033,-282.046,0.0005401,120]
[335159412,1723894214084,-542.754,0.0005401,120]
[335159413,1723894214136,-1413.0,0.0005401,120]
[335159414,1723894214190,-500.0,0.0005426,60]
[335159415,1723894214254,-200.0,0.00054773,10]
[335159416,1723894214322,-500.0,0.00054794,60]
[335159417,1723894214377,-596.73,0.00054794,120]
[335159418,1723894214434,-310.30779876,0.00054794,120]
[335159419,1723894214501,-500.0,0.00054794,120]
[335159420,1723894214559,-500.0,0.00054794,120]
[335159421,1723894214621,-315.78383574,0.00054794,120]
[335159422,1723894214679,-200.0,0.00054794,7]
[335159423,1723894214736,-500.0,0.00054794,120]
[335159424,1723894214796,-500.0,0.00054794,120]
[335159425,1723894214852,-500.0,0.00054794,120]
[335159426,1723894214913,-500.0,0.00054794,120]
[335159427,1723894214973,-500.0,0.00054794,120]
[335159428,1723894215032,-500.0,0.00054794,120]
[335159429,1723894215088,-500.0,0.00054794,120]
[335159430,1723894215144,-500.0,0.00054794,120]
[335159431,1723894215197,-500.0,0.00054794,120]
[335159432,1723894215251,-500.0,0.00054794,120]
[335159433,1723894215306,-466.24,0.00054794,120]
[335159434,1723894215362,-500.0,0.00054794,120]
[335159435,1723894215417,-500.0,0.00054794,120]
[335159436,1723894215477,-500.0,0.00054794,120]
[335159437,1723894215534,-500.0,0.00054794,120]
[335159438,1723894215591,-500.0,0.00054794,120]
[335159439,1723894215645,-500.0,0.00054794,120]
[335159440,1723894215700,-500.0,0.00054794,120]
[335159441,1723894215756,-500.0,0.00054794,120]
[335159442,1723894215809,-500.0,0.00054794,120]
[335159443,1723894215866,-500.0,0.00054794,120]
[335159444,1723894215924,-500.0,0.00054794,120]
[335159445,1723894215983,-500.0,0.00054794,120]
[335159446,1723894216156,-500.0,0.00054794,120]
[335159447,1723894216215,-504.51100049,0.00054794,120]
[335159448,1723894216274,-500.0,0.00054794,120]
[335159449,1723894216333,-500.0,0.00054794,120]
[335159450,1723894216390,-500.0,0.00054794,21]
[335159451,1723894216446,-194.35396802,0.00054794,120]
[335159452,1723894216521,-500.0,0.00054794,120]
[335159453,1723894216580,-500.0,0.00054794,120]
[335159454,1723894216643,-500.0,0.00054794,120]
[335159455,1723894216701,-500.0,0.00054794,7]
[335159456,1723894216758,-514.93,0.00054794,120]
[335159457,1723894216813,-500.0,0.00054794,120]
[335159458,1723894216867,-500.0,0.00054794,120]
[335159459,1723894216921,-500.0,0.00054794,120]
[335159460,1723894216976,-500.0,0.00054794,120]
[335159461,1723894217029,-500.0,0.00054794,120]
[335159462,1723894217086,-500.0,0.00054794,120]
[335159463,1723894217140,-623.4232265,0.00054794,120]
[335159464,1723894217196,-500.0,0.00054794,120]
[335159465,1723894217251,-500.0,0.00054794,120]
[335159466,1723894217307,-699.56,0.00054794,7]
[335159467,1723894217365,-500.0,0.00054794,120]
[335159468,1723894217422,-500.0,0.00054794,120]
[335159469,1723894217483,-237.66942285,0.00054794,120]
[335159470,1723894217543,-500.0,0.00054794,120]
[335159471,1723894217601,-500.0,0.00054794,120]
[335159472,1723894217661,-507.64312341,0.00054794,120]
[335159473,1723894217719,-500.0,0.00054794,120]
[335159474,1723894217781,-500.0,0.00054794,120]
[335159475,1723894217844,-500.0,0.00054794,120]
[335159476,1723894217904,-500.0,0.00054794,120]
[335159477,1723894217964,-10000.0,0.00055518,120]
[335159478,1723894218025,-400.0,0.00056142,15]
[335159479,1723894218085,-500.0,0.00056862,120]
[335159480,1723894218144,-163.150964,0.00057742,2]
[335159481,1723894218205,-400.0,0.00058146,15]
[335159482,1723894218362,174.15,0.0002499,3]
[335159483,1723894218596,701.17,0.00054794,120]
[335159484,1723894222829,500.0,0.00054794,120]
[335159485,1723894224905,782.32633188,0.00024756,2]
[335159486,1723894226612,500.0,0.00054794,60]
[335159487,1723894231027,500.0,0.00054794,120]
[335159488,1723894232012,181.08931424,0.00047789,31]
[335159489,1723894232086,500.0,0.00047789,120]
[335159491,1723894232177,170.01068515,0.00047789,120]
[335159512,1723894232439,500.0,0.00047789,120]
[335159520,1723894232507,500.0,0.00047789,120]
[335159531,1723894232604,-310.04764615,0.0004779,120]
[335159533,1723894232616,-13753.85148831,0.0004779,2]
[335159549,1723894238528,-314.47399217,0.0004779,2]
[335159550,1723894238611,-27402.58734818,0.0004779,2]
[335159551,1723894238623,-47404.36517172,0.0004779,2]
[335159552,1723894238633,-300.0,0.0004779,2]
[335159553,1723894238643,-789.87836342,0.0004779,2]
[335159554,1723894238652,-511.95383183,0.0004779,2]
[335159555,1723894238662,-289.76821498,0.0004779,2]
[335159556,1723894238672,-4081.34061067,0.0004779,2]
[335159560,1723894240994,-51.24518845,0.0004779,2]
[335159561,1723894241005,-319.02877401,0.0004779,2]
[335159562,1723894241016,-284.65828865,0.0004779,2]
[335159563,1723894241026,-4103.56110807,0.0004779,2]
[335159564,1723894241036,-526.6151831,0.0004779,2]
[335159565,1723894241047,-5706.5350771,0.0004779,2]
[335159566,1723894241061,-808.88059479,0.0004779,2]
[335159567,1723894241162,571.86,0.00054794,120]
[335159568,1723894241500,500.0,0.00054794,21]
[335159571,1723894243776,-560.55728956,0.0004779,2]
[335159587,1723894245321,500.0,0.00054794,120]
[335159590,1723894246712,500.0,0.00054794,120]
[335159591,1723894246847,-277.38989817,0.0004779,2]
[335159592,1723894247003,154.71377951,0.00035,4]
[335159593,1723894248356,4127.08600761,0.00024242,2]
[335159594,1723894248937,500.0,0.00054794,120]
[335159595,1723894250629,204.00334154,0.0002,2]
[335159596,1723894255188,500.0,0.00054794,120]
[335159597,1723894257048,500.0,0.00054794,120]
[335159598,1723894258814,1268.25890901,0.00024242,2]
[335159599,1723894263755,1183.25843546,0.00029,2]
[335159600,1723894263921,500.0,0.00054794,120]
[335159601,1723894263999,4345.68338588,0.0005,60]
[335159602,1723894268402,782.32633188,0.00024242,2]
[335159605,1723894392585,191.49679303,0.00014519,2]
[335159606,1723894418129,166.55964,0.00014247,2]
[335159607,1723894427810,384.94452828,0.00014519,2]
[335159635,1723895236179,-313.91151072,0.00017598,2]
[335159636,1723895243148,-93.9244023,0.00017598,2]
[335159637,1723895243170,-545.91583058,0.00024803,2]
[335159638,1723895246117,-388.00337284,0.00024803,2]
[335159639,1723895249095,-239.65417392,0.00024803,2]
[335159640,1723895251105,-1220.1763561,0.00024803,2]
[335159646,1723895403276,263.70449786,0.00015,2]
[335159647,1723895403300,9.66886445,0.00015,2]
[335159687,1723895437644,-284.08699412,0.00024679,6]
[335159689,1723895437655,-655.41829366,0.00024728,2]
[335159691,1723895437664,-614.49471222,0.00024803,2]
[335159693,1723895437678,-7338.61151787,0.00024803,2]
[335159696,1723895437688,-504.09272894,0.00025,2]
[335159698,1723895437700,-960.93985178,0.00025399,2]
[335159700,1723895437710,-300.0,0.00026574,2]
[335159702,1723895437721,-200.0,0.00026574,15]
[335159704,1723895437732,-191.95034667,0.00029284,2]
[335159706,1723895437741,-166.666667,0.00029805,2]
[335159708,1723895437751,-166.666667,0.00030581,2]
[335159710,1723895437761,-21023.85799563,0.00031194,2]
[335159927,1723895439980,-3876.14200437,0.00031194,2]
[335159929,1723895439991,-577.057909,0.00031261,2]
[335159931,1723895440003,-166.666667,0.00031358,2]
[335159933,1723895440014,-166.55964,0.00034703,2]
[335159935,1723895440024,-290.677476,0.00036,30]
[335160028,1723895447916,-20298.322524,0.00036,30]
[335160029,1723895447927,-3036.17588169,0.000389,2]
[335160030,1723895447942,-3824.75428023,0.00039,120]
[335160031,1723895447952,-577.057909,0.00046891,2]
[335160032,1723895447962,-4377.24963286,0.00047,61]
[335160033,1723895447972,-230671.09512328,0.00047,30]
[335160037,1723895536560,205.18896728,0.0001512,120]
[335160038,1723895536586,68.18439503,0.0001512,120]
[335160039,1723895552109,546.74672462,0.0001512,120]
[335160040,1723895578385,154.80649189,0.00014519,2]
[335160041,1723895581459,850.51877308,0.00014519,2]
[335160042,1723895583709,174.7908282,0.00014519,2]
[335160043,1723895619967,157.527109,0.00014247,2]
[335160044,1723895633713,228.14003566,0.00018327,2]
[335160046,1723896154012,157.894736,0.00014247,2]
[335160049,1723896210799,290.48852021,0.00017269,2]
[335160050,1723896341151,-237.94619387,0.00020932,2]
[335160051,1723896341176,-557.61245653,0.00020932,2]
[335160052,1723896355111,-249.25547474,0.00020932,2]
[335160053,1723896355135,-3149.73329595,0.00024818,2]
[335160054,1723896387210,-3061.60304999,0.00024818,2]
[335160055,1723896387238,-157.527109,0.00026521,2]
[335160056,1723896387263,-169.948312,0.00035737,2]
[335160057,1723896387291,-3000.0,0.00035947,2]
[335160058,1723896387318,-211.297033,0.00036038,2]
[335160059,1723896387344,-13566.569644,0.00036163,2]
[335160060,1723896387368,-163.150964,0.00036787,2]
[335160061,1723896387395,-211.297033,0.00037916,2]
[335160062,1723896387419,-157.527109,0.00038795,2]
[335160063,1723896387443,-10000.0,0.00045457,120]
[335160064,1723896387466,-1400.0,0.00046973,30]
[335160065,1723896387490,-4000.0,0.00047,60]
[335160066,1723896387514,-2656.65389647,0.00047649,28]
[335160067,1723896387538,-500.34123971,0.00047749,120]
[335160068,1723896387562,-500.34123971,0.00047749,120]
[335160069,1723896387586,-500.34123971,0.00047749,120]
[335160070,1723896387609,-500.34123971,0.00047749,120]
[335160071,1723896387633,-500.34123971,0.00047749,120]
[335160072,1723896387656,-500.34123971,0.00047749,120]
[335160073,1723896387680,-500.34123971,0.00047749,120]
[335160074,1723896387704,-500.34123971,0.00047749,120]
[335160075,1723896387727,-500.34123971,0.00047749,120]
[335160076,1723896387751,-500.34123971,0.00047749,120]
[335160077,1723896387775,-500.34123971,0.00047749,120]
[335160078,1723896387798,-500.34123971,0.00047749,120]
[335160079,1723896387839,-500.34123971,0.00047749,120]
[335160080,1723896387863,-500.34123971,0.00047749,120]
[335160081,1723896387888,-500.34123971,0.00047749,120]
[335160082,1723896387912,-500.34123971,0.00047749,120]
[335160083,1723896387936,-500.34123971,0.00047749,120]
[335160084,1723896387960,-500.34123971,0.00047749,120]
[335160085,1723896387984,-500.34123971,0.00047749,120]
[335160086,1723896388008,-500.34123971,0.00047749,120]
[335160087,1723896388033,-500.34123971,0.00047749,120]
[335160088,1723896388058,-500.34123971,0.00047749,120]
[335160089,1723896388082,-236.91857592,0.00047749,120]
[335160091,1723896434126,-500.0,0.0004775,120]
[335160092,1723896434148,-203.15894197,0.0004775,31]
[335160093,1723896434171,-500.0,0.0004775,120]
[335160094,1723896434199,-326.19241101,0.0004775,120]
[335160095,1723896434222,-500.0,0.0004775,120]